{"text_format":"1","workbook":"xlsx","n_sheets":36,"sheets":["Инструкция","Лог обновления","Титульный","Доходы-расходы","Расшифровка показателей","Комментарии","Проверка","modPROV","modfrmCheckUpdates","AllSheetsInThisWorkbook","et_union","TEHSHEET","REESTR_ORG","REESTR_FILTERED","REESTR_MO","modHyperlink","modChange","modTitleSheetHeaders","modServiceModule","modCommandButton","modReestr","modClassifierValidate","modInfo","modfrmReestr","modfrmDateChoose","modDblClick","Паспорт","modRegionSelectSub","modThisWorkbook","modReestrMO","modSheetMain01","modSheetMain02","modSheetMain03","modSheetMain04","modSheetMain05","modUpdTemplMain"],"not_rendered":{"charts":0,"images":17,"macros":1,"external_links":0,"defined_names":121,"comments":1,"pivot_tables":0},"unopened":[],"bounds":{"document_bytes":16777216,"sheet_cells":100000,"rows_first":2000,"rows_last":500,"rows_between":2000,"halvings":0,"cell_chars":16384,"cell_head_chars":4096},"cells_cut":0,"cells_raw":0,"read":"whole","date_system":"1900"}

{"sheet":"Инструкция","index":0,"n_rows":86,"n_cols":27,"rows_kept":86,"cut":false,"hidden":false,"merged":[[81,4,81,23],[83,5,83,18],[85,5,85,23],[77,4,77,5],[79,16,79,23],[79,4,79,5],[79,6,79,15],[77,6,77,15],[77,16,77,23],[78,4,78,5],[78,6,78,15],[78,16,78,23],[75,4,75,5],[75,6,75,15],[75,16,75,23],[76,4,76,5],[76,6,76,15],[76,16,76,23],[73,4,73,5],[73,6,73,15],[73,16,73,23],[74,4,74,5],[74,6,74,15],[74,16,74,23],[59,7,59,23],[60,7,60,23],[69,4,69,23],[71,4,71,5],[71,6,71,15],[71,16,71,23],[34,4,38,23],[39,4,39,23],[72,4,72,5],[72,6,72,15],[72,16,72,23],[57,4,57,6],[57,7,57,23],[58,4,58,6],[58,7,58,23],[59,4,59,6],[40,4,44,23],[45,4,56,23],[1,1,1,6],[2,1,2,2],[4,1,4,24],[6,4,18,23],[20,5,20,12],[20,15,20,23],[21,5,21,12],[21,15,21,23]]}
[null,null,null,null,null,null,null,null,null,null,null,null,null,null,null,null,null,null,null,null,null,null,null,null,null,null," (требуется обновление)"]
[null,{"$f":"\"Код шаблона: \" & GetCode()","v":"Код шаблона: FORMA2.BH"}]
[null,{"$f":"\"Версия \" & GetVersion()","v":"Версия 2.1.1"}]
[]
[null,"Отчёт о финансовых результатах"]
[]
[null,null,null,null,"• На рабочем месте должен быть установлен MS Office 2003 SP3, 2007 SP3, 2010, 2013 с полной версией MS Excel\n\n• Макросы во время работы должны быть включены (!)\n\n• Для корректной работы отчёта требуется выбрать низкий уровень безопасности\n(В меню MS Excel 2003: Сервис | Макрос | Безопасность | выбрать пункт «Низкая безопасность» | OK)\n(В меню MS Excel 2007/2010/2013: Параметры Excel | Центр управления безопасностью | Параметры центра управления безопасностью | Параметры макросов | Включить все макросы | ОК)\n\n• Если Вы работаете в табличном процессоре MS Excel 2007 и выше, то можете использовать для работы формат XLSB (Двоичная книга Excel). При работе в формате XLSB заметно быстрее происходит сохранение файла, а также уменьшается размер по сравнению с форматами XLS и XLSM\n\n• Не рекомендуется снимать защиту с листов и каким-либо образом модифицировать защищаемые формулы и расчётные поля, в противном случае, отчёт будет отклонён системой\n\n• При сохранении не следует выбирать формат XLSX (Книга Excel), так как в указанном формате макросы, необходимы для работы отчёта, безвозвратно удаляются"]
[]
[]
[]
[]
[]
[]
[]
[]
[]
[]
[]
[]
[]
[null,null,null,null,"A"," - предназначенные для заполнения",null,null,null,null,null,null,null,null,"A"," - обязательные для заполнения поля"]
[null,null,null,null,"A"," - с формулами и константами",null,null,null,null,null,null,null,null,"A"," - незаполняемые поля"]
[]
[]
[]
[]
[]
[]
[]
[]
[]
[]
[]
[]
[null,null,null,null,"Если в предложенном Вам списке необходимая организация, МР/МО отсутствуют, обновите реестры с помощью кнопок\n\nВ результате синхронизации с базой данных список организаций (МР/МО) будет заменён актуальным (механизм синхронизации требует подключения к сети Интернет и основан на использовании протокола HTTPS (TCP порт 443))\n\nЕсли после обновления Вам не удалось найти необходимую организацию в списке, обратитесь к ответственному за поддержание реестра Вашего региона."]
[]
[]
[]
[]
[null,null,null,null,""]
[null,null,null,null,"• Работа с отчётом начинается с выбора наименования субъекта Российской Федерации\n\n• После выбора субъекта производится обновление реестра муниципальных образований, также за одно нажатие можно обновить реестры организаций по всем сферам деятельности\n\n• Отображение и скрытие группы листов, а также автозаполнение листов, производится с помощью кнопок, либо при нажатии на ОКТМО, либо номер муниципального образования, все действия, манипуляции, вызов форм ввода на листах осуществляются двойным щелчком мыши"]
[]
[]
[]
[]
[null,null,null,null,"• При сохранении шаблона осуществляется проверка корректности данных, в том числе на наличие значений в ячейках, обязательных для заполнения\n\n• Если какая-то ячейка не удовлетворяет условию проверки, на лист «Проверка» добавляется гиперссылка на данную ячейку и указывается причина ошибки\n\n• В колонке «Статус» для каждого сообщения возможны 2 значения: ошибка и предупреждение\n\n• При наличии сообщений со статусом «Ошибка» шаблон будет отклонён системой и не будет загружен в хранилище данных, сообщения со статусом «Предупреждение» носят информационный характер, и такой шаблон будет принят системой"]
[]
[]
[]
[]
[]
[]
[]
[]
[]
[]
[]
[null,null,null,null,"Web-сайт:",null,null,"https://tariff.expert/servicedesk/plugins/servlet/desk"]
[]
[]
[]
[]
[]
[]
[]
[]
[]
[]
[]
[null,null,null,null,"Список сокращений"]
[]
[null,null,null,null,"ОКПО",null,"Общероссийский классификатор предприятий и организаций",null,null,null,null,null,null,null,null,null,"http://base.consultant.ru/cons/cgi/online.cgi?req=doc;base=LAW;n=133360;dst=0;ts=976FAE4D17FED02FE84251FA347CBCC1;rnd=0.38204030096458275"]
[null,null,null,null,"ОКВЭД 2",null,"Общероссийский классификатор видов экономической деятельности",null,null,null,null,null,null,null,null,null,"http://www.consultant.ru/cons/cgi/online.cgi?from=284921-0&rnd=71A02B304E8B4FB035F2E830280EB56C&req=doc&base=LAW&n=350817&REFDOC=284921&REFBASE=LAW#2kangm0vypk"]
[null,null,null,null,"ОКАТО",null,"Общероссийский классификатор объектов административно-территориального деления",null,null,null,null,null,null,null,null,null,"http://www.gmcgks.ru/index.php?id=21046"]
[null,null,null,null,"ОКОГУ",null,"Общероссийский классификатор органов государственной власти и управления",null,null,null,null,null,null,null,null,null,"http://www.gmcgks.ru/index.php?id=21036"]
[null,null,null,null,"ОКОПФ",null,"Общероссийский классификатор организационно-правовых форм",null,null,null,null,null,null,null,null,null,"http://base.consultant.ru/cons/cgi/online.cgi?req=doc;base=LAW;n=179370;fld=134;from=179211-102;rnd=180312.9268793507944793;;ts=0180312467623938806355"]
[null,null,null,null,"ОКФС",null,"Общероссийский классификатор форм собственности",null,null,null,null,null,null,null,null,null,"http://base.consultant.ru/cons/cgi/online.cgi?req=doc;base=LAW;n=139322;fld=134;dst=100008;rnd=180312.45840900391340256;;ts=018031229105898505076766"]
[null,null,null,null,"ОКУД",null,"Общероссийский классификатор управленческой документации",null,null,null,null,null,null,null,null,null,"http://base.consultant.ru/cons/cgi/online.cgi?req=doc;base=LAW;n=186745;fld=134;from=179211-90;rnd=180312.18053538468666375;;ts=01803129223564297426492"]
[null,null,null,null,"ОКЕИ",null,"Общероссийский классификатор единиц измерения",null,null,null,null,null,null,null,null,null,"http://base.consultant.ru/cons/cgi/online.cgi?req=doc;base=LAW;n=167465;fld=134;dst=100284;rnd=180312.07675228593870997;;ts=018031202063169120810926"]
[null,null,null,null,"ОКТМО",null,"Общероссийский классификатор территорий муниципальных образований",null,null,null,null,null,null,null,null,null,"http://www.gks.ru/metod/classifiers.html"]
[]
[null,null,null,null,"При наличии подключения к Интернет, можно автоматически проверять наличие доступных обновлений. Выберите способ оповещения о наличии обновлений для отчёта:"]
[]
[null,null,null,null,null,"проверять доступные обновления (рекомендуется)",null,null,null,null,null,null,null,null,null,null,null,null,null,null,null,null,null,null,null,null,"y"]
[]
[null,null,null,null,null,"никогда не проверять наличие обновлений (не рекомендуется)"]

{"sheet":"Лог обновления","index":1,"n_rows":12,"n_cols":4,"rows_kept":12,"cut":false,"hidden":true,"merged":[]}
[]
["3/17/2012 12:12:41 AM","Дата/Время","Сообщение","Статус"]
[null,"4/19/2021  10:37:29 AM","Проверка доступных обновлений...","Информация"]
[null,"4/19/2021  10:37:30 AM","Доступно обновление до версии 2.1.1","Информация"]
[null,"4/19/2021  10:37:30 AM","Описание изменений: Версия 2.1.1 (только с версии 2.1)\n1. Корректировка расчета строки 2500","Информация"]
[null,"4/19/2021  10:37:30 AM","Размер файла обновления: 385024 байт","Информация"]
[null,"4/19/2021  10:37:31 AM","Подготовка к обновлению...","Информация"]
[null,"4/19/2021  10:37:35 AM","Сохранение файла резервной копии: C:\\Users\\vo_okromelidze\\Desktop\\FORMA2.BH.BKP..xls","Информация"]
[null,"4/19/2021  10:37:35 AM","Резервная копия создана: C:\\Users\\vo_okromelidze\\Desktop\\FORMA2.BH.BKP..xls","Информация"]
[null,"4/19/2021  10:37:35 AM","Создание книги для установки обновлений...","Информация"]
[null,"4/19/2021  10:37:41 AM","Файл обновления загружен: C:\\Users\\vo_okromelidze\\Desktop\\UPDATE.FORMA2.BH.TO.2.1.1.55.xls","Информация"]
[null,"4/19/2021  10:37:43 AM","Обновление завершилось удачно! Шаблон FORMA2.BH.xls сохранен под именем 'FORMA2.BH(v2.1.1).xls'","Информация"]

{"sheet":"Титульный","index":2,"n_rows":52,"n_cols":10,"rows_kept":52,"cut":false,"hidden":true,"merged":[[53,3,53,5],[55,2,55,9],[48,3,48,5],[49,3,49,5],[45,3,45,5],[47,3,47,5],[50,3,50,5],[51,3,51,5],[29,10,31,10],[31,3,31,5],[35,3,35,5],[36,3,36,5],[43,3,43,5],[44,3,44,5],[29,3,29,5],[37,3,37,5],[39,3,39,5],[40,3,40,5],[41,3,41,5],[33,3,33,5],[20,7,20,9],[21,3,21,5],[21,8,21,9],[22,3,22,5],[23,3,23,5],[28,3,28,5],[23,8,23,9],[15,3,15,5],[17,8,17,9],[18,3,18,5],[18,8,18,9],[25,3,25,5],[25,8,26,9],[19,3,19,5],[19,8,19,9],[20,3,20,5],[13,3,13,5],[12,3,12,5],[3,2,3,9],[5,1,5,10],[8,3,8,5],[8,7,11,9],[10,3,10,5],[11,3,11,5]]}
[]
[]
[null,null,null,null,null,null,null,null,null,{"$f":"version","v":"Версия 2.1.1"}]
[null,null,"Отчёт о финансовых результатах"]
[]
[]
[]
[]
[null,null,"Субъект РФ",null,null,null,null,"Приложение\nк Приказу Минфина РФ\nот 02.07.2010 № 66н"]
[]
[null,null,null,"Отчётный период"]
[null,null,"Год"]
[]
[null,null,"Отчётная дата"]
[]
[null,null,"Признак филиала"]
[]
[null,null,null,null,null,null,null,"Форма по ОКУД","0710002"]
[null,null,null,null,null,null,null,"Дата (год,месяц,число)"]
[null,null,"Организация",null,null,null,null,"Код* по ОКПО"]
[null,null,"Наименование филиала:"]
[null,null,"ИНН",null,null,null,null,"Код* по ОКВЭД 2"]
[null,null,"КПП",null,null,null,null,"Код* по ОКОПФ/ОКФС "]
[null,null,"Вид деятельности",null,null,null,null,"Код* по ОКЕИ","384"]
[null,null,"Организационно-правовая форма/форма собственности",null,"/"]
[null,null,"Единица измерения","тыс.руб.",null,null,null,null,"* Расшифровки всех сокращений и ссылки приведены на листе \"Инструкция\""]
[]
[]
[null,null,null,"Реестр МР/МО не обновлён!"]
[null,null,"Муниципальный район"]
[]
[null,null,"Муниципальное образование"]
[]
[null,null,"ОКТМО"]
[]
[null,null,null,"Адрес организации"]
[null,null,"Юридический адрес"]
[null,null,"Почтовый адрес"]
[]
[null,null,null,"Руководитель"]
[null,null,"Фамилия, имя, отчество"]
[null,null,"(код) номер телефона"]
[]
[null,null,null,"Главный бухгалтер"]
[null,null,"Фамилия, имя, отчество"]
[null,null,"(код) номер телефона"]
[]
[null,null,null,"Должностное лицо,\nответственное за составление формы"]
[null,null,"Фамилия, имя, отчество"]
[null,null,"Должность"]
[null,null,"(код) номер телефона"]
[null,null,"e-mail"]

{"sheet":"Доходы-расходы","index":3,"n_rows":39,"n_cols":14,"rows_kept":39,"cut":false,"hidden":true,"merged":[[10,13,11,13],[7,4,7,13],[12,7,12,9],[12,10,12,12],[10,4,11,4],[10,7,11,9],[10,10,11,12],[10,6,11,6],[10,5,11,5]]}
[]
[]
[]
[]
[]
[]
[null,null,null,null,null,null,null,null,null,null,null,null,null,"Форма 0710002 с. 1"]
[null,null,null,null,"Отчёт о финансовых результатах "]
[]
[null,null,null,null,null,null,null,null,null,null,null,null,{"$f":"IF(unit=\"\",\"\",unit)","v":"тыс.руб."}]
[null,null,null,null,"№\nп/п","Наименование ","Код ",{"$f":"\"За \"&IF(OR(_prd2=\"\",god=\"\"),\"отчётный период\",_prd2&\" \"&god&\" г.\")","v":"За отчётный период"},null,null,{"$f":"\"За \"&IF(OR(_prd2=\"\",god=\"\"),\"аналогичный период предыдущего года\",_prd2&\" \"&god-1&\" г.\")","v":"За аналогичный период предыдущего года"},null,null,"Пояснения"]
[]
[null,null,null,null,1,"2","3","4",null,null,"5",null,null,"6"]
[null,null,null,null,"1.1","Выручка (за минусом налога на добавленную стоимость, акцизов)","2110"]
[null,null,null,null,"1.2","Себестоимость продаж","2120","(",null,")","(",null,")"]
[null,null,null,null,"1.3","Валовая прибыль (убыток)","2100"]
[null,null,null,null,"1.4","Коммерческие расходы","2210","(",null,")","(",null,")"]
[null,null,null,null,"1.5","Управленческие расходы","2220","(",null,")","(",null,")"]
[null,null,null,null,"1.6","Прибыль (убыток) от продаж ","2200"]
[null,null,null,null,"1.7","Доходы от участия в других организациях","2310"]
[null,null,null,null,"1.8","Проценты к получению","2320"]
[null,null,null,null,"1.9","Проценты к уплате","2330","(",null,")","(",null,")"]
[null,null,null,null,"1.10","Прочие доходы","2340"]
[null,null,null,null,"1.11","Прочие расходы","2350","(",null,")","(",null,")"]
[null,null,null,null,"1.12","Прибыль (убыток) до налогообложения ","2300"]
[null,null,null,null,"1.13","Налог на прибыль","2410"]
[null,null,null,null,"1.13.1","в т.ч. текущий налог на прибыль","2411","(",null,")","(",null,")"]
[null,null,null,null,"1.13.2","отложенный налог на прибыль","2412"]
[null,null,null,null,"1.14","Прочее","2460"]
[null,null,null,null,"1.15","Чистая прибыль (убыток)","2400"]
[null,null,null,null,"2","Справочно"]
[null,null,null,null,"2.1","Результат от переоценки внеоборотных активов, не включаемый в чистую прибыль (убыток) периода","2510"]
[null,null,null,null,"2.2","Результат от прочих операций, не включаемый в чистую прибыль (убыток) периода","2520"]
[null,null,null,null,"2.3","Налог на прибыль от операций, результат которых не включается в чистую прибыль (убыток) периода","2530"]
[null,null,null,null,"2.4","Совокупный финансовый результат периода","2500",{"$f":"IF((SUMIF(H30:H34,\"\",I30:I34)-SUMIF(H30:H34,\"(\",I30:I34))<0,\"(\",\"\")","v":""},{"$f":"ABS(SUMIF(H30:H34,\"\",I30:I34)-SUMIF(H30:H34,\"(\",I30:I34))","v":0},{"$f":"IF(H35=\"(\",\")\",\"\")","v":""},{"$f":"IF((SUMIF(K30:K34,\"\",L30:L34)-SUMIF(K30:K34,\"(\",L30:L34))<0,\"(\",\"\")","v":""},{"$f":"ABS(SUMIF(K30:K34,\"\",L30:L34)-SUMIF(K30:K34,\"(\",L30:L34))","v":0},{"$f":"IF(K35=\"(\",\")\",\"\")","v":""}]
[null,null,null,null,"2.5","Базовая прибыль (убыток) на акцию","2900"]
[null,null,null,null,null,"Единица измерения по строке 2900"]
[null,null,null,null,"2.6","Разводненная прибыль (убыток) на акцию","2910"]
[null,null,null,null,null,"Единица измерения по строке 2910"]

{"sheet":"Расшифровка показателей","index":4,"n_rows":80,"n_cols":13,"rows_kept":80,"cut":false,"hidden":true,"merged":[[7,4,7,12],[10,7,10,9],[10,10,10,12],[11,7,11,9],[11,10,11,12]]}
[]
["Амурская область"]
[]
[]
[]
[]
[null,null,null,null,null,null,null,null,null,null,null,null,"Форма 0710002 с. 3"]
[null,null,null,null,"Расшифровка отдельных показателей"]
[]
[null,null,null,null,null,null,null,null,null,null,null,null,{"$f":"IF(unit=\"\",\"\",unit)","v":"тыс.руб."}]
[null,null,null,null,"№\nп/п","Наименование","Код",{"$f":"\"За \"&IF(OR(_prd2=\"\",god=\"\"),\"отчётный период\",_prd2&\" \"&god&\" г.\")","v":"За отчётный период"},null,null,{"$f":"\"За \"&IF(OR(_prd2=\"\",god=\"\"),\"аналогичный период предыдущего года\",_prd2&\" \"&god-1&\" г.\")","v":"За аналогичный период предыдущего года"}]
[null,null,null,null,1,"2","3","4",null,null,"5"]
[null,null,null,null,"1","Выручка (стр.2110), в том числе:",null,{"$f":"IF('Доходы-расходы'!H14=\"(\",\"(\",\"\")","v":""},{"$f":"'Доходы-расходы'!I14","v":0},{"$f":"IF(H13=\"(\",\")\",\"\")","v":""},{"$f":"IF('Доходы-расходы'!K14=\"(\",\"(\",\"\")","v":""},{"$f":"'Доходы-расходы'!L14","v":0},{"$f":"IF(K13=\"(\",\")\",\"\")","v":""}]
[null,null,null,null,"1.1",null,"21101"]
[null,null,null,null,"1.2",null,"21102"]
[null,null,null,null,null,"Добавить строку"]
[null,null,null,null,"2","Себестоимость продаж (стр.2120), в том числе:",null,{"$f":"IF('Доходы-расходы'!H15=\"(\",\"(\",\"\")","v":"("},{"$f":"'Доходы-расходы'!I15","v":0},{"$f":"IF(H17=\"(\",\")\",\"\")","v":")"},{"$f":"IF('Доходы-расходы'!K15=\"(\",\"(\",\"\")","v":"("},{"$f":"'Доходы-расходы'!L15","v":0},{"$f":"IF(K17=\"(\",\")\",\"\")","v":")"}]
[null,null,null,null,"2.1",null,"21201","(",null,")","(",null,")"]
[null,null,null,null,"2.2",null,21202,"(",null,")","(",null,")"]
[null,null,null,null,null,"Добавить строку"]
[null,null,null,null,"3","Валовая прибыль (убыток) (стр.2100), в том числе:",null,{"$f":"IF('Доходы-расходы'!H16=\"(\",\"(\",\"\")","v":""},{"$f":"'Доходы-расходы'!I16","v":0},{"$f":"IF(H21=\"(\",\")\",\"\")","v":""},{"$f":"IF('Доходы-расходы'!K16=\"(\",\"(\",\"\")","v":""},{"$f":"'Доходы-расходы'!L16","v":0},{"$f":"IF(K21=\"(\",\")\",\"\")","v":""}]
[null,null,null,null,"3.1",null,"21001"]
[null,null,null,null,"3.2",null,"21002"]
[null,null,null,null,null,"Добавить строку"]
[null,null,null,null,"4","Коммерческие расходы (стр.2210), в том числе:",null,{"$f":"IF('Доходы-расходы'!H17=\"(\",\"(\",\"\")","v":"("},{"$f":"'Доходы-расходы'!I17","v":0},{"$f":"IF(H25=\"(\",\")\",\"\")","v":")"},{"$f":"IF('Доходы-расходы'!K17=\"(\",\"(\",\"\")","v":"("},{"$f":"'Доходы-расходы'!L17","v":0},{"$f":"IF(K25=\"(\",\")\",\"\")","v":")"}]
[null,null,null,null,"4.1",null,"22101","(",null,")","(",null,")"]
[null,null,null,null,null,"Добавить строку"]
[null,null,null,null,"5","Управленческие расходы (стр.2220), в том числе:",null,{"$f":"IF('Доходы-расходы'!H18=\"(\",\"(\",\"\")","v":"("},{"$f":"'Доходы-расходы'!I18","v":0},{"$f":"IF(H28=\"(\",\")\",\"\")","v":")"},{"$f":"IF('Доходы-расходы'!K18=\"(\",\"(\",\"\")","v":"("},{"$f":"'Доходы-расходы'!L18","v":0},{"$f":"IF(K28=\"(\",\")\",\"\")","v":")"}]
[null,null,null,null,"5.1",null,"22201","(",null,")","(",null,")"]
[null,null,null,null,null,"Добавить строку"]
[null,null,null,null,"6","Прибыль (убыток) от продаж (стр.2200), в том числе:",null,{"$f":"IF('Доходы-расходы'!H19=\"(\",\"(\",\"\")","v":""},{"$f":"'Доходы-расходы'!I19","v":0},{"$f":"IF(H31=\"(\",\")\",\"\")","v":""},{"$f":"IF('Доходы-расходы'!K19=\"(\",\"(\",\"\")","v":""},{"$f":"'Доходы-расходы'!L19","v":0},{"$f":"IF(K31=\"(\",\")\",\"\")","v":""}]
[null,null,null,null,"6.1",null,"22001"]
[null,null,null,null,"6.2",null,"22002"]
[null,null,null,null,null,"Добавить строку"]
[null,null,null,null,"7","Доходы от участия в других организациях (стр.2310), в том числе:",null,{"$f":"IF('Доходы-расходы'!H20=\"(\",\"(\",\"\")","v":""},{"$f":"'Доходы-расходы'!I20","v":0},{"$f":"IF(H35=\"(\",\")\",\"\")","v":""},{"$f":"IF('Доходы-расходы'!K20=\"(\",\"(\",\"\")","v":""},{"$f":"'Доходы-расходы'!L20","v":0},{"$f":"IF(K35=\"(\",\")\",\"\")","v":""}]
[null,null,null,null,"7.1",null,"23101"]
[null,null,null,null,null,"Добавить строку"]
[null,null,null,null,"8","Проценты к получению (стр.2320), в том числе:",null,{"$f":"IF('Доходы-расходы'!H21=\"(\",\"(\",\"\")","v":""},{"$f":"'Доходы-расходы'!I21","v":0},{"$f":"IF(H38=\"(\",\")\",\"\")","v":""},{"$f":"IF('Доходы-расходы'!K21=\"(\",\"(\",\"\")","v":""},{"$f":"'Доходы-расходы'!L21","v":0},{"$f":"IF(K38=\"(\",\")\",\"\")","v":""}]
[null,null,null,null,"8.1",null,"23201"]
[null,null,null,null,null,"Добавить строку"]
[null,null,null,null,"9","Проценты к уплате (стр.2330), в том числе:",null,{"$f":"IF('Доходы-расходы'!H22=\"(\",\"(\",\"\")","v":"("},{"$f":"'Доходы-расходы'!I22","v":0},{"$f":"IF(H41=\"(\",\")\",\"\")","v":")"},{"$f":"IF('Доходы-расходы'!K22=\"(\",\"(\",\"\")","v":"("},{"$f":"'Доходы-расходы'!L22","v":0},{"$f":"IF(K41=\"(\",\")\",\"\")","v":")"}]
[null,null,null,null,"9.1",null,"23301","(",null,")","(",null,")"]
[null,null,null,null,null,"Добавить строку"]
[null,null,null,null,"10","Прочие доходы (стр.2340), в том числе:",null,{"$f":"IF('Доходы-расходы'!H23=\"(\",\"(\",\"\")","v":""},{"$f":"'Доходы-расходы'!I23","v":0},{"$f":"IF(H44=\"(\",\")\",\"\")","v":""},{"$f":"IF('Доходы-расходы'!K23=\"(\",\"(\",\"\")","v":""},{"$f":"'Доходы-расходы'!L23","v":0},{"$f":"IF(K44=\"(\",\")\",\"\")","v":""}]
[null,null,null,null,"10.1",null,"23401"]
[null,null,null,null,"10.2",null,"23402"]
[null,null,null,null,"10.3",null,"23403"]
[null,null,null,null,null,"Добавить строку"]
[null,null,null,null,"11","Прочие расходы (стр.2350), в том числе:",null,{"$f":"IF('Доходы-расходы'!H24=\"(\",\"(\",\"\")","v":"("},{"$f":"'Доходы-расходы'!I24","v":0},{"$f":"IF(H49=\"(\",\")\",\"\")","v":")"},{"$f":"IF('Доходы-расходы'!K24=\"(\",\"(\",\"\")","v":"("},{"$f":"'Доходы-расходы'!L24","v":0},{"$f":"IF(K49=\"(\",\")\",\"\")","v":")"}]
[null,null,null,null,"11.1",null,"23501","(",null,")","(",null,")"]
[null,null,null,null,"11.2",null,"23502","(",null,")","(",null,")"]
[null,null,null,null,"11.3",null,"23503","(",null,")","(",null,")"]
[null,null,null,null,null,"Добавить строку"]
[null,null,null,null,"12","Прибыль (убыток) до налогообложения (стр.2300), в том числе:",null,{"$f":"IF('Доходы-расходы'!H25=\"(\",\"(\",\"\")","v":""},{"$f":"'Доходы-расходы'!I25","v":0},{"$f":"IF(H54=\"(\",\")\",\"\")","v":""},{"$f":"IF('Доходы-расходы'!K25=\"(\",\"(\",\"\")","v":""},{"$f":"'Доходы-расходы'!L25","v":0},{"$f":"IF(K54=\"(\",\")\",\"\")","v":""}]
[null,null,null,null,"12.1",null,"23001"]
[null,null,null,null,"12.2",null,"23002"]
[null,null,null,null,null,"Добавить строку"]
[null,null,null,null,"13","Налог на прибыль (стр.2410), в том числе:",null,{"$f":"IF('Доходы-расходы'!H26=\"(\",\"(\",\"\")","v":""},{"$f":"'Доходы-расходы'!I26","v":0},{"$f":"IF(H58=\"(\",\")\",\"\")","v":""},{"$f":"IF('Доходы-расходы'!K26=\"(\",\"(\",\"\")","v":""},{"$f":"'Доходы-расходы'!L26","v":0},{"$f":"IF(K58=\"(\",\")\",\"\")","v":""}]
[null,null,null,null,"13.1",null,"24101"]
[null,null,null,null,null,"Добавить строку"]
[null,null,null,null,"14","В т.ч. текущий налог на прибыль (стр.2411), в том числе:",null,{"$f":"IF('Доходы-расходы'!H27=\"(\",\"(\",\"\")","v":"("},{"$f":"'Доходы-расходы'!I27","v":0},{"$f":"IF(H61=\"(\",\")\",\"\")","v":")"},{"$f":"IF('Доходы-расходы'!K27=\"(\",\"(\",\"\")","v":"("},{"$f":"'Доходы-расходы'!L27","v":0},{"$f":"IF(K61=\"(\",\")\",\"\")","v":")"}]
[null,null,null,null,"14.1",null,"24111"]
[null,null,null,null,null,"Добавить строку"]
[null,null,null,null,"15","Отложенный налог на прибыль (стр.2412), в том числе:",null,{"$f":"IF('Доходы-расходы'!H28=\"(\",\"(\",\"\")","v":""},{"$f":"'Доходы-расходы'!I28","v":0},{"$f":"IF(H64=\"(\",\")\",\"\")","v":""},{"$f":"IF('Доходы-расходы'!K28=\"(\",\"(\",\"\")","v":""},{"$f":"'Доходы-расходы'!L28","v":0},{"$f":"IF(K64=\"(\",\")\",\"\")","v":""}]
[null,null,null,null,"15.1",null,"24121"]
[null,null,null,null,null,"Добавить строку"]
[null,null,null,null,"16","Прочее (стр.2460), в том числе:",null,{"$f":"IF('Доходы-расходы'!H29=\"(\",\"(\",\"\")","v":""},{"$f":"'Доходы-расходы'!I29","v":0},{"$f":"IF(H67=\"(\",\")\",\"\")","v":""},{"$f":"IF('Доходы-расходы'!K29=\"(\",\"(\",\"\")","v":""},{"$f":"'Доходы-расходы'!L29","v":0},{"$f":"IF(K67=\"(\",\")\",\"\")","v":""}]
[null,null,null,null,"16.1",null,"24601"]
[null,null,null,null,"16.2",null,"24602"]
[null,null,null,null,"16.3",null,"24603"]
[null,null,null,null,null,"Добавить строку"]
[null,null,null,null,"17","Результат от переоценки внеоборотных активов, не включаемый в чистую прибыль (убыток) периода (стр.2510), в том числе:",null,{"$f":"IF('Доходы-расходы'!H32=\"(\",\"(\",\"\")","v":""},{"$f":"'Доходы-расходы'!I32","v":0},{"$f":"IF(H72=\"(\",\")\",\"\")","v":""},{"$f":"IF('Доходы-расходы'!K32=\"(\",\"(\",\"\")","v":""},{"$f":"'Доходы-расходы'!L32","v":0},{"$f":"IF(K72=\"(\",\")\",\"\")","v":""}]
[null,null,null,null,"17.1",null,"25101"]
[null,null,null,null,null,"Добавить строку"]
[null,null,null,null,"18","Результат от прочих операций, не включаемый в чистую прибыль (убыток) периода (стр.2520), в том числе:",null,{"$f":"IF('Доходы-расходы'!H33=\"(\",\"(\",\"\")","v":""},{"$f":"'Доходы-расходы'!I33","v":0},{"$f":"IF(H75=\"(\",\")\",\"\")","v":""},{"$f":"IF('Доходы-расходы'!K33=\"(\",\"(\",\"\")","v":""},{"$f":"'Доходы-расходы'!L33","v":0},{"$f":"IF(K75=\"(\",\")\",\"\")","v":""}]
[null,null,null,null,"18.1",null,"25201"]
[null,null,null,null,null,"Добавить строку"]
[null,null,null,null,"19","Налог на прибыль от операций, результат которых не включается в чистую прибыль (убыток) периода (стр.2530), в том числе:",null,{"$f":"IF('Доходы-расходы'!H34=\"(\",\"(\",\"\")","v":""},{"$f":"'Доходы-расходы'!I34","v":0},{"$f":"IF(H78=\"(\",\")\",\"\")","v":""},{"$f":"IF('Доходы-расходы'!K34=\"(\",\"(\",\"\")","v":""},{"$f":"'Доходы-расходы'!L34","v":0},{"$f":"IF(K78=\"(\",\")\",\"\")","v":""}]
[null,null,null,null,"19.1",null,"25301"]
[null,null,null,null,null,"Добавить строку"]

{"sheet":"Комментарии","index":5,"n_rows":10,"n_cols":6,"rows_kept":10,"cut":false,"hidden":true,"merged":[[6,4,6,5],[11,4,11,5]]}
[]
[]
[]
[]
[]
[]
[null,null,null,null,"Ниже вы можете оставить свои комментарии"]
[]
[null,null,null,null,"1"]
[null,null,null,null,null,"Добавить комментарий"]

{"sheet":"Проверка","index":6,"n_rows":13,"n_cols":7,"rows_kept":13,"cut":false,"hidden":true,"merged":[[9,4,9,6]]}
[]
[]
[]
[]
[]
[]
[]
[]
[]
[null,null,null,null,"Результат проверки"]
[]
[null,null,null,null,"Ссылка","Причина","Статус"]
[null,null,null,null,"1","2","3"]

{"sheet":"modPROV","index":7,"n_rows":0,"n_cols":0,"rows_kept":0,"cut":false,"hidden":true,"merged":[]}

{"sheet":"modfrmCheckUpdates","index":8,"n_rows":0,"n_cols":0,"rows_kept":0,"cut":false,"hidden":true,"merged":[]}

{"sheet":"AllSheetsInThisWorkbook","index":9,"n_rows":30,"n_cols":2,"rows_kept":30,"cut":false,"hidden":true,"merged":[]}
["Расчетные листы","Скрытые листы"]
["Инструкция","modPROV"]
["Лог обновления","modfrmCheckUpdates"]
["Титульный","AllSheetsInThisWorkbook"]
["Доходы-расходы","et_union"]
["Расшифровка показателей","TEHSHEET"]
["Комментарии","REESTR_ORG"]
["Проверка","REESTR_FILTERED"]
[null,"REESTR_MO"]
[null,"modHyperlink"]
[null,"modChange"]
[null,"modTitleSheetHeaders"]
[null,"modServiceModule"]
[null,"modCommandButton"]
[null,"modReestr"]
[null,"modClassifierValidate"]
[null,"modInfo"]
[null,"modfrmReestr"]
[null,"modfrmDateChoose"]
[null,"modDblClick"]
[null,"Паспорт"]
[null,"modRegionSelectSub"]
[null,"modThisWorkbook"]
[null,"modReestrMO"]
[null,"modSheetMain01"]
[null,"modSheetMain02"]
[null,"modSheetMain03"]
[null,"modSheetMain04"]
[null,"modSheetMain05"]
[null,"modUpdTemplMain"]

{"sheet":"et_union","index":10,"n_rows":21,"n_cols":13,"rows_kept":21,"cut":false,"hidden":true,"merged":[]}
[]
["add_INCOME_CONSUMPTION_range"]
[]
[]
[]
[]
["add_GAINS_AND_LOSSES_range"]
[]
[]
[]
[]
["add_INDICATORS_range"]
[]
[]
[]
["add_INDICATORS_range_2"]
[]
[null,null,null,null,null,null,null,"(",null,")","(",null,")"]
[]
[]
["COMS_ADD_RANGE"]

{"sheet":"TEHSHEET","index":11,"n_rows":88,"n_cols":11,"rows_kept":88,"cut":false,"hidden":true,"merged":[[0,0,1,0]]}
["регион","название","Логика","Кварталы","Года","Единица измерения","Месяц-текст","Месяц-число","День-число",null,"XML_ORG_LIST_TAG_NAMES"]
[null,null,"да","I квартал",2012,"тыс.руб.","январь","01","01",null,"NSRF"]
["Алтайский край","Значение показателей отчета о финансовых результатах","нет","I полугодие",2013,"млн.руб.","февраль","02","02",null,"MR_NAME"]
["Амурская область",null,null,"9 месяцев",2014,null,"март","03","03",null,"OKTMO_MR_NAME"]
["Архангельская область",null,null,"год",2015,"Единица измерения для листа \"Доходы-Расходы\"","апрель","04","04",null,"MO_NAME"]
["Астраханская область",null,"Выбранный регион",null,2016,"руб.","май","05","05",null,"OKTMO_NAME"]
["Белгородская область",null,0,null,2017,"тыс.руб.","июнь","06","06",null,"ORG_NAME"]
["Брянская область",null,null,null,2018,"млн.руб.","июль","07","07",null,"INN_NAME"]
["Владимирская область",null,null,null,2019,null,"август","08","08",null,"KPP_NAME"]
["Волгоградская область",null,null,null,2020,null,"сентябрь","09","09"]
["Вологодская область",null,null,null,null,null,"октябрь",10,10,null,"XML_MR_MO_OKTMO_LIST_TAG_NAMES"]
["Воронежская область",null,null,null,null,null,"ноябрь",11,11,null,"NSRF"]
["г.Байконур",null,null,null,null,null,"декабрь",12,12,null,"MR_NAME"]
["г. Москва",null,null,null,null,null,null,null,13,null,"OKTMO_MR_NAME"]
["г.Санкт-Петербург",null,null,null,null,null,null,null,14,null,"MO_NAME"]
["г.Севастополь",null,null,null,null,null,null,null,15,null,"OKTMO_NAME"]
["Еврейская автономная область",null,null,null,null,null,null,null,16]
["Забайкальский край",null,null,null,null,null,null,null,17]
["Ивановская область",null,null,null,null,null,null,null,18]
["Иркутская область",null,null,null,null,null,null,null,19]
["Кабардино-Балкарская республика",null,null,null,null,null,null,null,20]
["Калининградская область",null,null,null,null,null,null,null,21]
["Калужская область",null,null,null,null,null,null,null,22]
["Камчатский край",null,null,null,null,null,null,null,23]
["Карачаево-Черкесская республика",null,null,null,null,null,null,null,24]
["Кемеровская область",null,null,null,null,null,null,null,25]
["Кировская область",null,null,null,null,null,null,null,26]
["Костромская область",null,null,null,null,null,null,null,27]
["Краснодарский край",null,null,null,null,null,null,null,28]
["Красноярский край",null,null,null,null,null,null,null,29]
["Курганская область",null,null,null,null,null,null,null,30]
["Курская область",null,null,null,null,null,null,null,31]
["Ленинградская область"]
["Липецкая область"]
["Магаданская область"]
["Московская область"]
["Мурманская область"]
["Ненецкий автономный округ"]
["Нижегородская область"]
["Новгородская область"]
["Новосибирская область"]
["Омская область"]
["Оренбургская область"]
["Орловская область"]
["Пензенская область"]
["Пермский край"]
["Приморский край"]
["Псковская область"]
["Республика Адыгея"]
["Республика Алтай"]
["Республика Башкортостан"]
["Республика Бурятия"]
["Республика Дагестан"]
["Республика Ингушетия"]
["Республика Калмыкия"]
["Республика Карелия"]
["Республика Крым"]
["Республика Коми"]
["Республика Марий Эл"]
["Республика Мордовия"]
["Республика Саха (Якутия)"]
["Республика Северная Осетия-Алания"]
["Республика Татарстан"]
["Республика Тыва"]
["Республика Хакасия"]
["Ростовская область"]
["Рязанская область"]
["Самарская область"]
["Саратовская область"]
["Сахалинская область"]
["Свердловская область"]
["Смоленская область"]
["Ставропольский край"]
["Тамбовская область"]
["Тверская область"]
["Томская область"]
["Тульская область"]
["Тюменская область"]
["Удмуртская республика"]
["Ульяновская область"]
["Хабаровский край"]
["Ханты-Мансийский автономный округ"]
["Челябинская область"]
["Чеченская республика"]
["Чувашская республика"]
["Чукотский автономный округ"]
["Ямало-Ненецкий автономный округ"]
["Ярославская область"]

{"sheet":"REESTR_ORG","index":12,"n_rows":1,"n_cols":8,"rows_kept":1,"cut":false,"hidden":true,"merged":[]}
["№","МР","МО","МО ОКТМО","ОРГАНИЗАЦИЯ","ИНН","КПП","ВИД ДЕЯТЕЛЬНОСТИ"]

{"sheet":"REESTR_FILTERED","index":13,"n_rows":1,"n_cols":8,"rows_kept":1,"cut":false,"hidden":true,"merged":[]}
["№","МР","МО","МО ОКТМО","ОРГАНИЗАЦИЯ","ИНН","КПП","ВИД ДЕЯТЕЛЬНОСТИ"]

{"sheet":"REESTR_MO","index":14,"n_rows":1,"n_cols":5,"rows_kept":1,"cut":false,"hidden":true,"merged":[]}
["МР","МО","МО_ОКТМО","МР","ИМЯ ДИАПАЗОНА"]

{"sheet":"modHyperlink","index":15,"n_rows":0,"n_cols":0,"rows_kept":0,"cut":false,"hidden":true,"merged":[]}

{"sheet":"modChange","index":16,"n_rows":0,"n_cols":0,"rows_kept":0,"cut":false,"hidden":true,"merged":[]}

{"sheet":"modTitleSheetHeaders","index":17,"n_rows":0,"n_cols":0,"rows_kept":0,"cut":false,"hidden":true,"merged":[]}

{"sheet":"modServiceModule","index":18,"n_rows":0,"n_cols":0,"rows_kept":0,"cut":false,"hidden":true,"merged":[]}

{"sheet":"modCommandButton","index":19,"n_rows":0,"n_cols":0,"rows_kept":0,"cut":false,"hidden":true,"merged":[]}

{"sheet":"modReestr","index":20,"n_rows":0,"n_cols":0,"rows_kept":0,"cut":false,"hidden":true,"merged":[]}

{"sheet":"modClassifierValidate","index":21,"n_rows":0,"n_cols":0,"rows_kept":0,"cut":false,"hidden":true,"merged":[]}

{"sheet":"modInfo","index":22,"n_rows":4,"n_cols":2,"rows_kept":4,"cut":false,"hidden":true,"merged":[]}
[]
[null,"Нажмите кнопку \"Выбрать организацию из списка\" для автоматического ввода реквизитов организации"]
[null,"Нет доступных обновлений, версия отчёта актуальна"]
[null,"Нажмите кнопку \"Обновить реестр МО\", если реестр не загружен или не актуален"]

{"sheet":"modfrmReestr","index":23,"n_rows":0,"n_cols":0,"rows_kept":0,"cut":false,"hidden":true,"merged":[]}

{"sheet":"modfrmDateChoose","index":24,"n_rows":0,"n_cols":0,"rows_kept":0,"cut":false,"hidden":true,"merged":[]}

{"sheet":"modDblClick","index":25,"n_rows":0,"n_cols":0,"rows_kept":0,"cut":false,"hidden":true,"merged":[]}

{"sheet":"Паспорт","index":26,"n_rows":71,"n_cols":57,"rows_kept":71,"cut":false,"hidden":true,"merged":[[64,3,64,10],[61,3,61,10],[63,5,63,10],[70,5,70,10],[69,5,69,10],[68,5,68,10],[67,5,67,10],[66,3,66,10],[33,3,33,10],[54,3,54,10],[62,5,62,10],[57,5,57,10],[58,5,58,10],[56,3,56,10],[36,8,36,10],[37,8,37,10],[59,5,59,10],[35,3,35,10],[30,5,30,10],[31,7,31,10],[32,7,32,10],[22,5,22,10],[23,5,23,10],[29,3,29,10],[25,3,25,10],[26,5,26,10],[27,3,27,10],[14,6,14,9],[21,5,21,10],[17,3,17,10],[15,5,15,10],[18,5,18,10],[19,5,19,10],[20,5,20,10],[3,3,3,10],[12,5,12,10],[13,5,13,10],[6,5,6,10],[7,5,7,10],[5,3,5,10],[8,5,8,10],[9,5,9,10],[10,5,10,10],[11,5,11,10],[42,8,42,10],[43,8,43,10],[41,8,41,10],[38,8,38,10],[39,8,39,10],[40,8,40,10],[52,8,52,10],[53,8,53,10],[44,8,44,10],[45,8,45,10],[50,8,50,10],[51,8,51,10],[48,8,48,10],[49,8,49,10],[46,8,46,10],[47,8,47,10]]}
[null,null,null,null,null,null,null,null,null,null,null,null,null,null,null,null,null,null,null,null,null,null,null,null,null,null,null,null,null,null,null,null,null,null,null,null,null,null,null,null,null,null,null,null,null,null,null,"Код диапазона:","Название диапазона:","Сфера регулирования:","Подсфера:","Тип информации в шаблоне:","Состояние шаблона:","Периодичность:","\"Геотип\" шаблона:","Тип шаблона:","Заказчик:"]
[null,null,null,null,null,null,null,null,null,null,null,null,null,null,null,null,null,null,null,null,null,null,null,null,null,null,null,null,null,null,null,null,null,null,null,null,null,null,null,null,null,null,null,null,null,null,null,"ps_sr","Сфера регулирования:","Не определено","Не определено","Не определено","Не определено","Не определено","Не определено","Не определено","Не определено"]
[null,null,null,null,null,null,null,null,null,null,null,null,null,null,null,null,null,null,null,null,null,null,null,null,null,null,null,null,null,null,null,null,null,null,null,null,null,null,null,null,null,null,null,null,null,null,null,"ps_ti","Тип информации в шаблоне:","NETS","водоотведение - очистка","Статистический","Проект","Единовременный","Региональный шаблон","Атомарный","РЭК"]
[null,null,null,"Паспорт к шаблону",null,null,null,null,null,null,null,null,null,null,null,null,null,null,null,null,null,null,null,null,null,null,null,null,null,null,null,null,null,null,null,null,null,null,null,null,null,null,null,null,null,null,null,"ps_ssh","Состояние шаблона:","Аэропорты","водоотведение - передача","Расчетный","Утвержден","Ежемесячный","Муниципальный шаблон","Сводный","ФСТ"]
[null,null,null,null,null,null,null,null,null,null,null,null,null,null,null,null,null,null,null,null,null,null,null,null,null,null,null,null,null,null,null,null,null,null,null,null,null,null,null,null,null,null,null,null,null,null,null,"ps_p","Периодичность:","Газ","водоотведение - прием","Обосновывающие материалы",null,"Ежеквартальный","Шаблон от организации",null,"Экспертная организация"]
[null,null,null,"1. Общие сведения",null,null,null,null,null,null,null,null,null,null,null,null,null,null,null,null,null,null,null,null,null,null,null,null,null,null,null,null,null,null,null,null,null,null,null,null,null,null,null,null,null,null,null,"ps_geo","\"Геотип\" шаблона:","Железные дороги","водоснабжение - очистка",null,null,"Ежегодный"]
[null,null,null,"1.1","Код",null,null,null,null,null,null,null,null,null,null,null,null,null,null,null,null,null,null,null,null,null,null,null,null,null,null,null,null,null,null,null,null,null,null,null,null,null,null,null,null,null,null,"ps_tsh","Тип шаблона:","ЖКХ","водоснабжение - передача"]
[null,null,null,"1.2","Краткое наименование",null,null,null,null,null,null,null,null,null,null,null,null,null,null,null,null,null,null,null,null,null,null,null,null,null,null,null,null,null,null,null,null,null,null,null,null,null,null,null,null,null,null,"ps_psr","Подсфера:","Медицина","водоснабжение - подъем"]
[null,null,null,"1.3","Полное наименование",null,null,null,null,null,null,null,null,null,null,null,null,null,null,null,null,null,null,null,null,null,null,null,null,null,null,null,null,null,null,null,null,null,null,null,null,null,null,null,null,null,null,"ps_z","Заказчик:","Порты","выработка ТС"]
[null,null,null,"1.4","Сфера регулирования ",null,null,null,null,null,null,null,null,null,null,null,null,null,null,null,null,null,null,null,null,null,null,null,null,null,null,null,null,null,null,null,null,null,null,null,null,null,null,null,null,null,null,null,null,"Связь","выработка ТС в режиме комбинированной выработки"]
[null,null,null,"1.5","Подсфера",null,null,null,null,null,null,null,null,null,null,null,null,null,null,null,null,null,null,null,null,null,null,null,null,null,null,null,null,null,null,null,null,null,null,null,null,null,null,null,null,null,null,null,null,"Транспорт","выработка электрической энергии"]
[null,null,null,"1.6","Состояние шаблона (Утвержден/Проект)",null,null,null,null,null,null,null,null,null,null,null,null,null,null,null,null,null,null,null,null,null,null,null,null,null,null,null,null,null,null,null,null,null,null,null,null,null,null,null,null,null,null,null,null,"Электроэнергетика","выработка+передача+сбыт ТС"]
[null,null,null,"1.7","Заказчик",null,null,null,null,null,null,null,null,null,null,null,null,null,null,null,null,null,null,null,null,null,null,null,null,null,null,null,null,null,null,null,null,null,null,null,null,null,null,null,null,null,null,null,null,null,"передача ТС"]
[null,null,null,"1.8","Отчитывается",null,null,null,null,null,null,null,null,null,null,null,null,null,null,null,null,null,null,null,null,null,null,null,null,null,null,null,null,null,null,null,null,null,null,null,null,null,null,null,null,null,null,null,null,null,"передача ЭЭ"]
[null,null,null,"1.9","Тип шаблона",null,"Если шаблон сводный, необходимо указать код атомарного шаблона для него:",null,null,null,null,null,null,null,null,null,null,null,null,null,null,null,null,null,null,null,null,null,null,null,null,null,null,null,null,null,null,null,null,null,null,null,null,null,null,null,null,null,null,null,"сбыт ТС"]
[null,null,null,"1.10","Текущая версия",null,null,null,null,null,null,null,null,null,null,null,null,null,null,null,null,null,null,null,null,null,null,null,null,null,null,null,null,null,null,null,null,null,null,null,null,null,null,null,null,null,null,null,null,null,"сбыт ЭЭ"]
[null,null,null,null,null,null,null,null,null,null,null,null,null,null,null,null,null,null,null,null,null,null,null,null,null,null,null,null,null,null,null,null,null,null,null,null,null,null,null,null,null,null,null,null,null,null,null,null,null,null,"ТБО"]
[null,null,null,"2. Организационные"]
[null,null,null,"2.1","Тип информации в шаблоне "]
[null,null,null,"2.2","Ответственный регулятор (от заказчика)"]
[null,null,null,"2.3","Ответственный специалист (от СМА)"]
[null,null,null,"2.4","Ответственный программист (от СМА)"]
[null,null,null,"2.5","Ответственные за сбор данных (от СМА)"]
[null,null,null,"2.6","Ответственные за сбор данных (от заказчика)"]
[]
[null,null,null,"3. Законодательство (методики, приказы, постановления ...)"]
[null,null,"first","3.1","Документ1"]
[null,null,"end","Добавить документ"]
[]
[null,null,null,"4. Периодичность"]
[null,null,null,"4.1","Периодичность"]
[null,null,null,null,"Мониторинги(прошедшие и плановые)","Дата начала","Дата окончания","Согласно (приказ, постановление, письмо)"]
[null,null,"first","4.2.1","Мониторинг1"]
[null,null,"end","Добавить мониторинг"]
[]
[null,null,null,"5. Состав шаблона"]
[null,null,null,null,"Лист","Последняя дата изменений эскиза","Состояние листа","Наименование витрины для листа","Комментарии"]
[null,null,"first","5.1.1"]
[null,null,"Удалить","5.1.2"]
[null,null,"Удалить","5.1.3"]
[null,null,"Удалить","5.1.4"]
[null,null,"Удалить","5.1.5"]
[null,null,"Удалить","5.1.6"]
[null,null,"Удалить","5.1.7"]
[null,null,"Удалить","5.1.8"]
[null,null,"Удалить","5.1.9"]
[null,null,"Удалить","5.1.10"]
[null,null,"Удалить","5.1.11"]
[null,null,"Удалить","5.1.12"]
[null,null,"Удалить","5.1.13"]
[null,null,"Удалить","5.1.14"]
[null,null,"Удалить","5.1.15"]
[null,null,"Удалить","5.1.16"]
[null,null,"Удалить","5.1.17"]
[null,null,"end","Добавить лист"]
[]
[null,null,null,"6. Сроки и даты"]
[null,null,null,"6.1.1","Даты получения последних эскизов, от экспертов"]
[null,null,null,"6.1.2","Даты отправки шаблона на проверку"]
[null,null,null,"6.1.3","Предполагаемый срок сдачи шаблона в эксплуатацию"]
[]
[null,null,null,"7. Версии"]
[null,null,null,null,"Версия","Отличия от предыдущей"]
[null,null,"first","7.1"]
[null,null,"end","Добавить версию"]
[]
[null,null,null,"8. Дополнительно"]
[null,null,null,"8.1","Аналогичные(\"похожие\") шаблоны"]
[null,null,null,"8.2","Особенности шаблона"]
[null,null,null,"8.3","Модуль на основе данного шаблона"]
[null,null,null,"8.4","Процедуры загрузки данных в витрины"]

{"sheet":"modRegionSelectSub","index":27,"n_rows":0,"n_cols":0,"rows_kept":0,"cut":false,"hidden":true,"merged":[]}

{"sheet":"modThisWorkbook","index":28,"n_rows":0,"n_cols":0,"rows_kept":0,"cut":false,"hidden":true,"merged":[]}

{"sheet":"modReestrMO","index":29,"n_rows":0,"n_cols":0,"rows_kept":0,"cut":false,"hidden":true,"merged":[]}

{"sheet":"modSheetMain01","index":30,"n_rows":0,"n_cols":0,"rows_kept":0,"cut":false,"hidden":true,"merged":[]}

{"sheet":"modSheetMain02","index":31,"n_rows":0,"n_cols":0,"rows_kept":0,"cut":false,"hidden":true,"merged":[]}

{"sheet":"modSheetMain03","index":32,"n_rows":0,"n_cols":0,"rows_kept":0,"cut":false,"hidden":true,"merged":[]}

{"sheet":"modSheetMain04","index":33,"n_rows":0,"n_cols":0,"rows_kept":0,"cut":false,"hidden":true,"merged":[]}

{"sheet":"modSheetMain05","index":34,"n_rows":0,"n_cols":0,"rows_kept":0,"cut":false,"hidden":true,"merged":[]}

{"sheet":"modUpdTemplMain","index":35,"n_rows":0,"n_cols":0,"rows_kept":0,"cut":false,"hidden":true,"merged":[]}